[Event "Live Chess"]
[Site "Chess.com"]
[Date "2010.12.15"]
[Round "-"]
[White "Malbogia"]
[Black "hipposcottimus"]
[Result "0-1"]
[CurrentPosition "r4rk1/p1p3pp/8/2p1Bp2/5Pq1/1P3b2/P1P2K1P/R4Q2 w - -"]
[Timezone "UTC"]
[ECO "C30"]
[ECOUrl "https://www.chess.com/openings/Kings-Gambit-Declined-Queens-Knight-Defense-3.Nf3"]
[UTCDate "2010.12.15"]
[UTCTime "21:04:39"]
[WhiteElo "1466"]
[BlackElo "1446"]
[TimeControl "480"]
[Termination "hipposcottimus won by resignation"]
[StartTime "21:04:39"]
[EndDate "2010.12.15"]
[EndTime "21:07:02"]
[Link "https://www.chess.com/game/live/77656701"]

1. e4 {[%clk 0:08:00]} 1... e5 {[%clk 0:08:00]} 2. f4 {[%clk 0:07:58.7]} 2... Nc6 {[%clk 0:07:59.8]} 3. Nf3 {[%clk 0:07:57.4]} 3... d5 {[%clk 0:07:59.4]} 4. Bb5 {[%clk 0:07:55.9]} 4... dxe4 {[%clk 0:07:49.6]} 5. Bxc6+ {[%clk 0:07:54.5]} 5... bxc6 {[%clk 0:07:47]} 6. Nxe5 {[%clk 0:07:53.4]} 6... Bd6 {[%clk 0:07:46.1]} 7. O-O {[%clk 0:07:51]} 7... f5 {[%clk 0:07:42.3]} 8. d3 {[%clk 0:07:48.6]} 8... Nf6 {[%clk 0:07:40.3]} 9. dxe4 {[%clk 0:07:44]} 9... Nxe4 {[%clk 0:07:37.7]} 10. b3 {[%clk 0:07:31.6]} 10... O-O {[%clk 0:07:35]} 11. Bb2 {[%clk 0:07:30.4]} 11... Bc5+ {[%clk 0:07:17]} 12. Kh1 {[%clk 0:07:28.1]} 12... Qh4 {[%clk 0:07:15.9]} 13. g3 {[%clk 0:07:25.2]} 13... Nxg3+ {[%clk 0:07:14.6]} 14. Kg2 {[%clk 0:07:22.6]} 14... Nxf1 {[%clk 0:07:09.6]} 15. Qxf1 {[%clk 0:07:21.2]} 15... Bd6 {[%clk 0:06:57.9]} 16. Nd2 {[%clk 0:07:18.1]} 16... Bxe5 {[%clk 0:06:56.2]} 17. Bxe5 {[%clk 0:07:16.4]} 17... Bb7 {[%clk 0:06:53.4]} 18. Kg1 {[%clk 0:07:13.3]} 18... c5 {[%clk 0:06:49.5]} 19. Nf3 {[%clk 0:07:07.6]} 19... Qg4+ {[%clk 0:06:46.8]} 20. Kf2 {[%clk 0:07:01.4]} 20... Bxf3 {[%clk 0:06:46.1]} 0-1

[Event "Live Chess"]
[Site "Chess.com"]
[Date "2010.12.15"]
[Round "-"]
[White "hipposcottimus"]
[Black "Strangelove13"]
[Result "1-0"]
[CurrentPosition "3r1rk1/pQN1n2p/3b2p1/5R2/3P4/2P5/PP4PP/R1B3K1 b - -"]
[Timezone "UTC"]
[ECO "C57"]
[ECOUrl "https://www.chess.com/openings/Italian-Game-Fried-Liver-Attack-6...Kxf7-7.Qf3"]
[UTCDate "2010.12.15"]
[UTCTime "20:47:56"]
[WhiteElo "1624"]
[BlackElo "1340"]
[TimeControl "60"]
[Termination "hipposcottimus won on time"]
[StartTime "20:47:56"]
[EndDate "2010.12.15"]
[EndTime "20:49:43"]
[Link "https://www.chess.com/game/live/77652067"]

1. e4 {[%clk 0:01:00]} 1... e5 {[%clk 0:01:00]} 2. Nf3 {[%clk 0:00:59.7]} 2... Nc6 {[%clk 0:00:59.2]} 3. Bc4 {[%clk 0:00:59.4]} 3... Nf6 {[%clk 0:00:55.3]} 4. Ng5 {[%clk 0:00:58.1]} 4... d5 {[%clk 0:00:53.3]} 5. exd5 {[%clk 0:00:57.8]} 5... Nxd5 {[%clk 0:00:52]} 6. Nxf7 {[%clk 0:00:56.3]} 6... Kxf7 {[%clk 0:00:49.4]} 7. Qf3+ {[%clk 0:00:55.9]} 7... Ke8 {[%clk 0:00:46.9]} 8. Bxd5 {[%clk 0:00:54.3]} 8... Qxd5 {[%clk 0:00:44.8]} 9. Qxd5 {[%clk 0:00:53.2]} 9... Bf5 {[%clk 0:00:42.6]} 10. c3 {[%clk 0:00:47.9]} 10... Bd6 {[%clk 0:00:40.1]} 11. Na3 {[%clk 0:00:46.4]} 11... Rd8 {[%clk 0:00:37.7]} 12. Nb5 {[%clk 0:00:44]} 12... Rf8 {[%clk 0:00:33.3]} 13. O-O {[%clk 0:00:39.7]} 13... g6 {[%clk 0:00:31.1]} 14. d4 {[%clk 0:00:38.5]} 14... e4 {[%clk 0:00:28.2]} 15. f3 {[%clk 0:00:36.8]} 15... Ne7 {[%clk 0:00:26.8]} 16. Qxb7 {[%clk 0:00:29.4]} 16... exf3 {[%clk 0:00:23.5]} 17. Rxf3 {[%clk 0:00:26.7]} 17... Kf7 {[%clk 0:00:10.4]} 18. Nxc7 {[%clk 0:00:24.5]} 18... Kg8 {[%clk 0:00:02.6]} 19. Rxf5 {[%clk 0:00:20.6]} 1-0

[Event "Live Chess"]
[Site "Chess.com"]
[Date "2010.12.15"]
[Round "-"]
[White "flutevisions3"]
[Black "hipposcottimus"]
[Result "1-0"]
[CurrentPosition "r4r2/pp2k3/4RpB1/8/2p5/1P6/P4PPP/R5K1 b - -"]
[Timezone "UTC"]
[ECO "D00"]
[ECOUrl "https://www.chess.com/openings/Queens-Pawn-Opening-1...d5"]
[UTCDate "2010.12.15"]
[UTCTime "20:33:07"]
[WhiteElo "1598"]
[BlackElo "1624"]
[TimeControl "60"]
[Termination "flutevisions3 won on time"]
[StartTime "20:33:07"]
[EndDate "2010.12.15"]
[EndTime "20:35:21"]
[Link "https://www.chess.com/game/live/77647860"]

1. d4 {[%clk 0:01:00]} 1... d5 {[%clk 0:01:00]} 2. Nd2 {[%clk 0:00:59.6]} 2... c6 {[%clk 0:00:59.6]} 3. Ngf3 {[%clk 0:00:58.6]} 3... e6 {[%clk 0:00:59.3]} 4. e3 {[%clk 0:00:57.7]} 4... Nd7 {[%clk 0:00:59.1]} 5. Be2 {[%clk 0:00:57.1]} 5... Ngf6 {[%clk 0:00:58.8]} 6. b3 {[%clk 0:00:56.6]} 6... c5 {[%clk 0:00:58.4]} 7. Bb2 {[%clk 0:00:56.2]} 7... cxd4 {[%clk 0:00:56.8]} 8. exd4 {[%clk 0:00:55.6]} 8... Bd6 {[%clk 0:00:56]} 9. c3 {[%clk 0:00:55]} 9... O-O {[%clk 0:00:55.4]} 10. Bb5 {[%clk 0:00:54.4]} 10... Nb6 {[%clk 0:00:52.7]} 11. Bd3 {[%clk 0:00:52.7]} 11... Ng4 {[%clk 0:00:46.3]} 12. O-O {[%clk 0:00:51.6]} 12... f5 {[%clk 0:00:42.4]} 13. Ne5 {[%clk 0:00:50.3]} 13... Be7 {[%clk 0:00:38]} 14. Nxg4 {[%clk 0:00:47.7]} 14... fxg4 {[%clk 0:00:36.9]} 15. Qxg4 {[%clk 0:00:46.6]} 15... e5 {[%clk 0:00:36.7]} 16. Qe2 {[%clk 0:00:44.7]} 16... Bg5 {[%clk 0:00:35.8]} 17. dxe5 {[%clk 0:00:42.4]} 17... Bh4 {[%clk 0:00:30]} 18. Nf3 {[%clk 0:00:39.5]} 18... Be7 {[%clk 0:00:26.4]} 19. Bc2 {[%clk 0:00:37.4]} 19... Nd7 {[%clk 0:00:26]} 20. Qd3 {[%clk 0:00:36.1]} 20... Re8 {[%clk 0:00:25.7]} 21. Qxh7+ {[%clk 0:00:34.5]} 21... Kf8 {[%clk 0:00:25.5]} 22. Qh8+ {[%clk 0:00:31.2]} 22... Kf7 {[%clk 0:00:24.1]} 23. Qh5+ {[%clk 0:00:28.6]} 23... Kf8 {[%clk 0:00:22.9]} 24. Bh7 {[%clk 0:00:24.2]} 24... Nxe5 {[%clk 0:00:16.5]} 25. Bg6 {[%clk 0:00:21.5]} 25... Bf6 {[%clk 0:00:13.3]} 26. Nxe5 {[%clk 0:00:19.8]} 26... Bxe5 {[%clk 0:00:11.8]} 27. Qh8+ {[%clk 0:00:17.9]} 27... Ke7 {[%clk 0:00:10]} 28. Qh4+ {[%clk 0:00:16.1]} 28... Bf6 {[%clk 0:00:07.4]} 29. Qd4 {[%clk 0:00:10.2]} 29... Rf8 {[%clk 0:00:06.3]} 30. Qe3+ {[%clk 0:00:08.6]} 30... Be6 {[%clk 0:00:04.5]} 31. c4 {[%clk 0:00:07.7]} 31... Qd6 {[%clk 0:00:04.2]} 32. Bxf6+ {[%clk 0:00:06]} 32... gxf6 {[%clk 0:00:02.5]} 33. Rfe1 {[%clk 0:00:05.4]} 33... dxc4 {[%clk 0:00:00.8]} 34. Qxe6+ {[%clk 0:00:04.8]} 34... Qxe6 {[%clk 0:00:00.2]} 35. Rxe6+ {[%clk 0:00:03.4]} 1-0

[Event "Live Chess"]
[Site "Chess.com"]
[Date "2010.12.15"]
[Round "-"]
[White "Strangelove13"]
[Black "hipposcottimus"]
[Result "0-1"]
[CurrentPosition "r3nrk1/ppp4p/5p2/1P3qp1/P4N2/3P1QPb/5P1P/2R1R1K1 w - g6"]
[Timezone "UTC"]
[ECO "C47"]
[ECOUrl "https://www.chess.com/openings/Four-Knights-Game-Italian-Variation"]
[UTCDate "2010.12.15"]
[UTCTime "20:30:12"]
[WhiteElo "1340"]
[BlackElo "1633"]
[TimeControl "60"]
[Termination "hipposcottimus won on time"]
[StartTime "20:30:12"]
[EndDate "2010.12.15"]
[EndTime "20:32:19"]
[Link "https://www.chess.com/game/live/77646998"]

1. e4 {[%clk 0:01:00]} 1... e5 {[%clk 0:01:00]} 2. Nf3 {[%clk 0:00:59.1]} 2... Nc6 {[%clk 0:00:59.7]} 3. Nc3 {[%clk 0:00:58.4]} 3... Nf6 {[%clk 0:00:59.4]} 4. Bc4 {[%clk 0:00:57.8]} 4... Bb4 {[%clk 0:00:58.5]} 5. a3 {[%clk 0:00:55]} 5... Ba5 {[%clk 0:00:56]} 6. b4 {[%clk 0:00:53.8]} 6... Bb6 {[%clk 0:00:55.8]} 7. b5 {[%clk 0:00:51]} 7... Na5 {[%clk 0:00:53.3]} 8. a4 {[%clk 0:00:48.8]} 8... Nxc4 {[%clk 0:00:51.8]} 9. O-O {[%clk 0:00:48.2]} 9... Nd6 {[%clk 0:00:50.6]} 10. d3 {[%clk 0:00:46.8]} 10... O-O {[%clk 0:00:44.8]} 11. Ne2 {[%clk 0:00:46.1]} 11... Nde8 {[%clk 0:00:44]} 12. c4 {[%clk 0:00:45.1]} 12... d5 {[%clk 0:00:41.3]} 13. c5 {[%clk 0:00:43.4]} 13... Bxc5 {[%clk 0:00:39.8]} 14. Ba3 {[%clk 0:00:42.2]} 14... Qd6 {[%clk 0:00:35.1]} 15. Bxc5 {[%clk 0:00:39.2]} 15... Qxc5 {[%clk 0:00:34.7]} 16. Rc1 {[%clk 0:00:37.5]} 16... Qd6 {[%clk 0:00:33]} 17. exd5 {[%clk 0:00:36.5]} 17... Nxd5 {[%clk 0:00:31.5]} 18. Re1 {[%clk 0:00:35.1]} 18... Nf4 {[%clk 0:00:30.3]} 19. Nxf4 {[%clk 0:00:33.3]} 19... exf4 {[%clk 0:00:30]} 20. Qd2 {[%clk 0:00:31]} 20... Bg4 {[%clk 0:00:23.4]} 21. Nh4 {[%clk 0:00:25.4]} 21... Qf6 {[%clk 0:00:20.3]} 22. g3 {[%clk 0:00:21.8]} 22... Bh3 {[%clk 0:00:17.1]} 23. Ng2 {[%clk 0:00:16]} 23... f3 {[%clk 0:00:13.6]} 24. Nf4 {[%clk 0:00:11.5]} 24... Qf5 {[%clk 0:00:07.9]} 25. Qe3 {[%clk 0:00:04.9]} 25... f6 {[%clk 0:00:05.2]} 26. Qxf3 {[%clk 0:00:03.6]} 26... g5 {[%clk 0:00:02.8]} 0-1

[Event "Live Chess"]
[Site "Chess.com"]
[Date "2010.12.15"]
[Round "-"]
[White "pet2008"]
[Black "hipposcottimus"]
[Result "0-1"]
[CurrentPosition "7k/p5pp/1p6/5p2/8/4pP2/1P3qPP/5K1R w - -"]
[Timezone "UTC"]
[ECO "B00"]
[ECOUrl "https://www.chess.com/openings/Nimzowitsch-Defense-Kennedy-Variation"]
[UTCDate "2010.12.15"]
[UTCTime "20:25:18"]
[WhiteElo "1556"]
[BlackElo "1633"]
[TimeControl "60"]
[Termination "hipposcottimus won by checkmate"]
[StartTime "20:25:18"]
[EndDate "2010.12.15"]
[EndTime "20:27:14"]
[Link "https://www.chess.com/game/live/77645681"]

1. e4 {[%clk 0:01:00]} 1... e5 {[%clk 0:01:00]} 2. d4 {[%clk 0:00:59.2]} 2... Nc6 {[%clk 0:00:59.7]} 3. d5 {[%clk 0:00:57.8]} 3... Nce7 {[%clk 0:00:59.1]} 4. c3 {[%clk 0:00:57]} 4... d6 {[%clk 0:00:58.8]} 5. Qc2 {[%clk 0:00:56.2]} 5... c6 {[%clk 0:00:58.5]} 6. Bg5 {[%clk 0:00:55.5]} 6... cxd5 {[%clk 0:00:56.5]} 7. exd5 {[%clk 0:00:54.8]} 7... f6 {[%clk 0:00:54.6]} 8. Bh4 {[%clk 0:00:53.5]} 8... Nxd5 {[%clk 0:00:54.1]} 9. Bc4 {[%clk 0:00:52.5]} 9... Nge7 {[%clk 0:00:53.3]} 10. Bxd5 {[%clk 0:00:51.3]} 10... Nxd5 {[%clk 0:00:53]} 11. Nd2 {[%clk 0:00:49.6]} 11... Be7 {[%clk 0:00:51.9]} 12. Ne4 {[%clk 0:00:48.5]} 12... O-O {[%clk 0:00:50]} 13. Qb3 {[%clk 0:00:46.3]} 13... f5 {[%clk 0:00:49.6]} 14. Qxd5+ {[%clk 0:00:45.1]} 14... Kh8 {[%clk 0:00:46]} 15. Bxe7 {[%clk 0:00:44.1]} 15... Qxe7 {[%clk 0:00:45.5]} 16. Nxd6 {[%clk 0:00:42.7]} 16... Be6 {[%clk 0:00:43.4]} 17. Qc5 {[%clk 0:00:39]} 17... b6 {[%clk 0:00:34.4]} 18. Qb4 {[%clk 0:00:37.7]} 18... Rad8 {[%clk 0:00:32.7]} 19. Rd1 {[%clk 0:00:29.5]} 19... Bxa2 {[%clk 0:00:25.8]} 20. Rd2 {[%clk 0:00:28.3]} 20... Be6 {[%clk 0:00:23.8]} 21. Nf3 {[%clk 0:00:26.4]} 21... e4 {[%clk 0:00:21.9]} 22. Ne5 {[%clk 0:00:25.3]} 22... e3 {[%clk 0:00:20.1]} 23. Nef7+ {[%clk 0:00:23.8]} 23... Bxf7 {[%clk 0:00:18]} 24. Nxf7+ {[%clk 0:00:23]} 24... Rxf7 {[%clk 0:00:17.4]} 25. Rxd8+ {[%clk 0:00:21.5]} 25... Qxd8 {[%clk 0:00:16.3]} 26. f3 {[%clk 0:00:19.7]} 26... Rd7 {[%clk 0:00:15.9]} 27. Qd4 {[%clk 0:00:16.5]} 27... Rxd4 {[%clk 0:00:14.7]} 28. cxd4 {[%clk 0:00:15.7]} 28... Qxd4 {[%clk 0:00:14.4]} 29. Ke2 {[%clk 0:00:08.1]} 29... Qd2+ {[%clk 0:00:13.1]} 30. Kf1 {[%clk 0:00:07]} 30... Qf2# {[%clk 0:00:12.2]} 0-1

[Event "Live Chess"]
[Site "Chess.com"]
[Date "2010.12.15"]
[Round "-"]
[White "hipposcottimus"]
[Black "potomonto"]
[Result "1-0"]
[CurrentPosition "r3r1k1/5pQp/2q1b3/1p6/8/PPB5/B5PP/R4R1K b - -"]
[Timezone "UTC"]
[ECO "C40"]
[ECOUrl "https://www.chess.com/openings/Kings-Pawn-Opening-Kings-Knight-Busch-Gass-Gambit"]
[UTCDate "2010.12.15"]
[UTCTime "20:23:04"]
[WhiteElo "1626"]
[BlackElo "1410"]
[TimeControl "60"]
[Termination "hipposcottimus won by checkmate"]
[StartTime "20:23:04"]
[EndDate "2010.12.15"]
[EndTime "20:24:49"]
[Link "https://www.chess.com/game/live/77645172"]

1. e4 {[%clk 0:01:00]} 1... e5 {[%clk 0:01:00]} 2. Nf3 {[%clk 0:00:59.7]} 2... Bc5 {[%clk 0:00:57.1]} 3. Bc4 {[%clk 0:00:59.4]} 3... Bxf2+ {[%clk 0:00:56.1]} 4. Kxf2 {[%clk 0:00:58.1]} 4... d6 {[%clk 0:00:55.8]} 5. Rf1 {[%clk 0:00:57.9]} 5... Nf6 {[%clk 0:00:55.4]} 6. Kg1 {[%clk 0:00:57.6]} 6... O-O {[%clk 0:00:55]} 7. d3 {[%clk 0:00:57.1]} 7... Bg4 {[%clk 0:00:52.6]} 8. Nc3 {[%clk 0:00:56.8]} 8... c6 {[%clk 0:00:50.3]} 9. Qe2 {[%clk 0:00:55.7]} 9... b5 {[%clk 0:00:48.2]} 10. Bb3 {[%clk 0:00:53]} 10... a5 {[%clk 0:00:46.6]} 11. a3 {[%clk 0:00:51.3]} 11... a4 {[%clk 0:00:45.4]} 12. Ba2 {[%clk 0:00:50.2]} 12... Be6 {[%clk 0:00:44.3]} 13. b3 {[%clk 0:00:45.6]} 13... axb3 {[%clk 0:00:42.4]} 14. cxb3 {[%clk 0:00:45.3]} 14... Nbd7 {[%clk 0:00:41]} 15. d4 {[%clk 0:00:41.5]} 15... exd4 {[%clk 0:00:38.8]} 16. Nxd4 {[%clk 0:00:39.7]} 16... Bg4 {[%clk 0:00:34.7]} 17. Qe3 {[%clk 0:00:36.4]} 17... Ne5 {[%clk 0:00:32.6]} 18. Bb2 {[%clk 0:00:29.2]} 18... d5 {[%clk 0:00:29.6]} 19. exd5 {[%clk 0:00:27]} 19... Nxd5 {[%clk 0:00:20.9]} 20. Qxe5 {[%clk 0:00:22.7]} 20... Re8 {[%clk 0:00:20.3]} 21. Qg3 {[%clk 0:00:19]} 21... Nxc3 {[%clk 0:00:18.4]} 22. Bxc3 {[%clk 0:00:17.9]} 22... Be6 {[%clk 0:00:17.2]} 23. Nxc6 {[%clk 0:00:15.9]} 23... Qb6+ {[%clk 0:00:14.4]} 24. Kh1 {[%clk 0:00:14.5]} 24... Qxc6 {[%clk 0:00:13.9]} 25. Qxg7# {[%clk 0:00:13.4]} 1-0

[Event "Live Chess"]
[Site "Chess.com"]
[Date "2010.12.15"]
[Round "-"]
[White "hipposcottimus"]
[Black "dayd"]
[Result "1-0"]
[CurrentPosition "8/6R1/7p/5R1k/5p2/5P2/6PP/6K1 b - -"]
[Timezone "UTC"]
[ECO "B20"]
[ECOUrl "https://www.chess.com/openings/Sicilian-Defense"]
[UTCDate "2010.12.15"]
[UTCTime "20:20:23"]
[WhiteElo "1622"]
[BlackElo "1437"]
[TimeControl "60"]
[Termination "hipposcottimus won on time"]
[StartTime "20:20:23"]
[EndDate "2010.12.15"]
[EndTime "20:22:35"]
[Link "https://www.chess.com/game/live/77644392"]

1. e4 {[%clk 0:01:00]} 1... c5 {[%clk 0:01:00]} 2. Bb5 {[%clk 0:00:58.3]} 2... a6 {[%clk 0:00:55.5]} 3. Be2 {[%clk 0:00:57.4]} 3... d6 {[%clk 0:00:53.9]} 4. Nf3 {[%clk 0:00:57.1]} 4... Bd7 {[%clk 0:00:53.3]} 5. c4 {[%clk 0:00:56.9]} 5... Nf6 {[%clk 0:00:52.9]} 6. Nc3 {[%clk 0:00:56.6]} 6... e5 {[%clk 0:00:50]} 7. d3 {[%clk 0:00:56.3]} 7... Be6 {[%clk 0:00:49]} 8. Bg5 {[%clk 0:00:56]} 8... Be7 {[%clk 0:00:47.9]} 9. O-O {[%clk 0:00:55.7]} 9... O-O {[%clk 0:00:47.2]} 10. Nd5 {[%clk 0:00:54.8]} 10... Bxd5 {[%clk 0:00:43.6]} 11. exd5 {[%clk 0:00:53.3]} 11... h6 {[%clk 0:00:43]} 12. Bh4 {[%clk 0:00:51.3]} 12... Nbd7 {[%clk 0:00:38.4]} 13. Re1 {[%clk 0:00:50.5]} 13... Nb6 {[%clk 0:00:37.3]} 14. a3 {[%clk 0:00:47.4]} 14... Qd7 {[%clk 0:00:36.4]} 15. b4 {[%clk 0:00:46.6]} 15... cxb4 {[%clk 0:00:34.3]} 16. axb4 {[%clk 0:00:46.3]} 16... a5 {[%clk 0:00:32.2]} 17. c5 {[%clk 0:00:45.5]} 17... Nbxd5 {[%clk 0:00:29.7]} 18. cxd6 {[%clk 0:00:43.9]} 18... Qxd6 {[%clk 0:00:28]} 19. d4 {[%clk 0:00:39.1]} 19... Nxb4 {[%clk 0:00:26.7]} 20. dxe5 {[%clk 0:00:36]} 20... Qxd1 {[%clk 0:00:25.9]} 21. Raxd1 {[%clk 0:00:35.3]} 21... Ne4 {[%clk 0:00:21]} 22. Bxe7 {[%clk 0:00:33.9]} 22... Rfe8 {[%clk 0:00:20]} 23. Bd6 {[%clk 0:00:31.2]} 23... Nxd6 {[%clk 0:00:16.9]} 24. exd6 {[%clk 0:00:30.9]} 24... Red8 {[%clk 0:00:15.4]} 25. d7 {[%clk 0:00:29.9]} 25... Nc6 {[%clk 0:00:14.8]} 26. Bb5 {[%clk 0:00:26.4]} 26... Kh7 {[%clk 0:00:14.4]} 27. Bxc6 {[%clk 0:00:25]} 27... bxc6 {[%clk 0:00:13.9]} 28. Ne5 {[%clk 0:00:24.5]} 28... Rf8 {[%clk 0:00:12.2]} 29. Nxc6 {[%clk 0:00:23.5]} 29... Rg8 {[%clk 0:00:09.2]} 30. d8=Q {[%clk 0:00:21.6]} 30... Raxd8 {[%clk 0:00:08.2]} 31. Nxd8 {[%clk 0:00:21.2]} 31... Rxd8 {[%clk 0:00:07.7]} 32. Rxd8 {[%clk 0:00:20.6]} 32... f6 {[%clk 0:00:07]} 33. Rd7 {[%clk 0:00:17.6]} 33... a4 {[%clk 0:00:06.5]} 34. Re3 {[%clk 0:00:16.3]} 34... a3 {[%clk 0:00:06.1]} 35. Rxa3 {[%clk 0:00:15.9]} 35... Kg6 {[%clk 0:00:04.3]} 36. Raa7 {[%clk 0:00:15.6]} 36... f5 {[%clk 0:00:03.7]} 37. Rxg7+ {[%clk 0:00:15.2]} 37... Kh5 {[%clk 0:00:03.4]} 38. Raf7 {[%clk 0:00:12.3]} 38... f4 {[%clk 0:00:03]} 39. Rh7 {[%clk 0:00:11.5]} 39... Kg5 {[%clk 0:00:02.2]} 40. f3 {[%clk 0:00:10.4]} 40... Kg6 {[%clk 0:00:01.7]} 41. Rhg7+ {[%clk 0:00:09.5]} 41... Kh5 {[%clk 0:00:00.4]} 42. Rf5+ {[%clk 0:00:08.9]} 1-0

[Event "Live Chess"]
[Site "Chess.com"]
[Date "2010.12.15"]
[Round "-"]
[White "dayd"]
[Black "hipposcottimus"]
[Result "0-1"]
[CurrentPosition "8/p5pp/R7/2P1pk2/1P6/5PqP/6P1/4q2K w - -"]
[Timezone "UTC"]
[ECO "C20"]
[ECOUrl "https://www.chess.com/openings/Kings-Pawn-Opening-Leonardis-Variation"]
[UTCDate "2010.12.15"]
[UTCTime "20:18:04"]
[WhiteElo "1441"]
[BlackElo "1618"]
[TimeControl "60"]
[Termination "hipposcottimus won by checkmate"]
[StartTime "20:18:04"]
[EndDate "2010.12.15"]
[EndTime "20:20:01"]
[Link "https://www.chess.com/game/live/77643664"]

1. e4 {[%clk 0:01:00]} 1... e5 {[%clk 0:01:00]} 2. d3 {[%clk 0:00:59.3]} 2... Nc6 {[%clk 0:00:59.7]} 3. Be3 {[%clk 0:00:58.1]} 3... Nf6 {[%clk 0:00:59.4]} 4. Nc3 {[%clk 0:00:57.7]} 4... d5 {[%clk 0:00:59.1]} 5. exd5 {[%clk 0:00:56.3]} 5... Nxd5 {[%clk 0:00:58.8]} 6. Bd2 {[%clk 0:00:53.2]} 6... Be6 {[%clk 0:00:57.5]} 7. Nxd5 {[%clk 0:00:52.2]} 7... Bxd5 {[%clk 0:00:56]} 8. Nf3 {[%clk 0:00:51.7]} 8... Be6 {[%clk 0:00:53.9]} 9. Be2 {[%clk 0:00:51]} 9... Bd6 {[%clk 0:00:51]} 10. O-O {[%clk 0:00:49.9]} 10... O-O {[%clk 0:00:50.7]} 11. h3 {[%clk 0:00:49]} 11... f5 {[%clk 0:00:50.3]} 12. Ng5 {[%clk 0:00:43.9]} 12... Qf6 {[%clk 0:00:45.6]} 13. Nxe6 {[%clk 0:00:38.8]} 13... Qxe6 {[%clk 0:00:45.2]} 14. Bf3 {[%clk 0:00:36.3]} 14... f4 {[%clk 0:00:44.9]} 15. Bxc6 {[%clk 0:00:34.4]} 15... bxc6 {[%clk 0:00:44.7]} 16. f3 {[%clk 0:00:30.5]} 16... Qg6 {[%clk 0:00:44.4]} 17. Qe2 {[%clk 0:00:28.3]} 17... Rf5 {[%clk 0:00:44.1]} 18. Qf2 {[%clk 0:00:27.6]} 18... Rg5 {[%clk 0:00:43.7]} 19. Kh1 {[%clk 0:00:27]} 19... c5 {[%clk 0:00:42.9]} 20. Rg1 {[%clk 0:00:26.4]} 20... Rg3 {[%clk 0:00:41.3]} 21. Be1 {[%clk 0:00:22.9]} 21... c6 {[%clk 0:00:40.9]} 22. Qe2 {[%clk 0:00:21.1]} 22... Bc7 {[%clk 0:00:40.5]} 23. Bxg3 {[%clk 0:00:20]} 23... fxg3 {[%clk 0:00:40.2]} 24. Qe3 {[%clk 0:00:17.7]} 24... Bb6 {[%clk 0:00:39.9]} 25. Qe1 {[%clk 0:00:16.8]} 25... c4 {[%clk 0:00:39.5]} 26. dxc4 {[%clk 0:00:15.6]} 26... Bf2 {[%clk 0:00:39]} 27. Qxf2 {[%clk 0:00:14.3]} 27... gxf2 {[%clk 0:00:37.9]} 28. Rgf1 {[%clk 0:00:14]} 28... Qg3 {[%clk 0:00:37.4]} 29. Rae1 {[%clk 0:00:12.4]} 29... Rd8 {[%clk 0:00:36.6]} 30. c3 {[%clk 0:00:11.9]} 30... Kf7 {[%clk 0:00:36.2]} 31. a3 {[%clk 0:00:11.4]} 31... Rd2 {[%clk 0:00:35.4]} 32. b4 {[%clk 0:00:11.2]} 32... Rc2 {[%clk 0:00:34.3]} 33. Rd1 {[%clk 0:00:09.8]} 33... Rxc3 {[%clk 0:00:31.6]} 34. c5 {[%clk 0:00:08.6]} 34... Rxa3 {[%clk 0:00:29.4]} 35. Rd7+ {[%clk 0:00:08.1]} 35... Ke6 {[%clk 0:00:28.4]} 36. Rc7 {[%clk 0:00:06.8]} 36... Re3 {[%clk 0:00:24.5]} 37. Rxc6+ {[%clk 0:00:06.1]} 37... Kf5 {[%clk 0:00:23.6]} 38. Ra6 {[%clk 0:00:03.7]} 38... Re1 {[%clk 0:00:23.3]} 39. Rxe1 {[%clk 0:00:00.5]} 39... fxe1=Q# {[%clk 0:00:22.2]} 0-1